bitfinex-derivatives/quotes_ETHF0:USTF0_20260213
["timestamp","ask_amount","ask_price","bid_price","bid_amount"]
[1771009170833,2.60963332,2057.3,2057.1,0.24318]
[1771009171434,2.60963332,2057.3,2056.6,2.57487892]
[1771009172428,2.75566827,2057.1,2056.6,0.24325]
[1771009173029,2.75566827,2057.1,2056.6,2.81812892]
[1771009174737,1.7023864,2057.0,2056.3,2.57487892]
[1771009175039,2.75566827,2056.9,2056.4,2.81814892]
[1771009177645,2.72466749,2057.2,2056.7,0.24323]
[1771009179537,0.02,2057.3,2056.7,2.87104142]
[1771009179735,2.74466749,2057.3,2056.7,2.87104142]
[1771009180247,2.72466749,2057.1,2056.7,2.87104142]
[1771009180947,3.22466749,2057.2,2056.7,2.87104142]
[1771009182750,3.22466749,2057.2,2056.7,0.24323]
[1771009184344,0.5,2057.2,2056.7,2.87104142]
[1771009184742,3.22466749,2057.2,2056.7,2.87104142]
[1771009187248,0.5,2057.2,2056.7,2.87104142]
[1771009187455,2.74466749,2057.3,2057.0,2.87100142]
[1771009187656,2.74466749,2057.3,2057.0,0.24319]
[1771009188858,2.74466749,2057.3,2056.3,8.74664514]
[1771009188859,2.74466749,2057.3,2056.7,2.62781142]
[1771009190266,2.74466749,2057.3,2057.0,0.24319]
[1771009191461,2.74466749,2057.3,2057.0,2.87100142]
[1771009191856,2.72809925,2057.5,2057.0,2.87100142]
[1771009192464,2.72466749,2057.4,2057.0,2.87100142]
[1771009194065,2.72809925,2057.5,2057.0,2.87100142]
[1771009195172,0.00343176,2057.5,2057.3,2.87097142]
[1771009195371,2.72809925,2057.5,2057.3,0.24316]
[1771009196272,2.72809925,2057.5,2057.0,2.62781142]
[1771009196474,2.72809925,2057.5,2056.6,19.14562514]
[1771009196475,2.72809925,2057.5,2057.1,2.87100142]
[1771009196765,0.00343176,2057.5,2057.1,2.87100142]
[1771009197164,2.72809925,2057.5,2057.1,2.87100142]
[1771009197569,0.00343176,2057.5,2057.1,2.87100142]
[1771009197769,2.72809925,2057.5,2057.1,2.87100142]
[1771009198076,0.00343176,2057.5,2057.1,2.87100142]
[1771009198570,2.72809925,2057.5,2057.1,2.87100142]
[1771009200773,0.00343176,2057.5,2057.1,2.87100142]
[1771009200976,2.74220036,2057.8,2057.5,2.87731134]
[1771009201180,43.54220036,2057.9,2057.5,2.87731134]
[1771009201381,2.74220036,2057.8,2057.5,2.87731134]
[1771009201581,2.74220036,2057.8,2057.5,0.24314]
[1771009201975,2.74613932,2057.8,2057.1,7.0846031]
[1771009202579,2.74613932,2057.8,2057.2,0.24318]
[1771009202880,2.74613932,2057.8,2057.2,2.87735134]
[1771009203074,2.74613932,2057.8,2056.9,2.63417134]
[1771009203974,2.74613932,2057.8,2057.0,2.87737134]
[1771009204975,2.74613932,2057.8,2057.4,0.24315]
[1771009205179,2.74613932,2057.8,2057.4,2.87732134]
[1771009206476,2.74613932,2057.8,2057.4,0.24315]
[1771009207072,2.74613932,2057.8,2057.4,2.87732134]
[1771009207276,0.00393896,2057.8,2057.4,2.87732134]
[1771009208378,2.74613932,2057.8,2057.4,2.87732134]
[1771009209084,2.74613932,2057.8,2057.2,2.63417134]
[1771009209277,2.74613932,2057.8,2057.1,2.63417134]
[1771009209580,2.74613932,2057.8,2056.9,2.87737134]
[1771009210486,2.74220036,2057.6,2056.6,4.466]
[1771009210783,2.74220036,2057.3,2056.5,0.24326]
[1771009211883,2.74220036,2057.3,2056.2,2.63417134]
[1771009212081,2.74220036,2057.1,2056.0,2.87748134]
[1771009212386,2.74220036,2057.1,2056.2,2.87747134]
[1771009212587,2.74220036,2056.9,2056.2,0.2433]
[1771009212983,2.74220036,2056.9,2056.2,2.87747134]
[1771009218086,2.74220036,2056.7,2056.2,2.87747134]
[1771009218691,2.74220036,2056.7,2056.2,0.2433]
[1771009219293,2.74220036,2056.7,2056.2,2.87747134]
[1771009220490,2.74220036,2056.7,2056.1,2.63417134]
[1771009220696,2.74220036,2056.7,2055.9,2.63417134]
[1771009221895,2.74220036,2056.7,2056.1,2.63417134]
[1771009223497,2.74220036,2056.5,2056.1,2.63417134]
[1771009223699,2.74220036,2056.5,2056.0,0.24332]
[1771009223897,2.74220036,2056.5,2056.0,2.87749134]
[1771009224198,43.54220036,2056.6,2056.0,2.87749134]
[1771009225494,2.74220036,2056.5,2056.0,2.87749134]
[1771009226598,2.74220036,2056.5,2056.0,0.24332]
[1771009226799,2.74220036,2056.5,2056.0,2.87749134]
[1771009228295,43.54220036,2056.6,2056.0,2.87749134]
[1771009228706,40.8,2056.6,2056.4,2.87744134]
[1771009228901,2.74220036,2057.5,2056.4,2.87744134]
[1771009229298,2.74220036,2057.3,2056.4,2.87744134]
[1771009229702,2.74220036,2057.3,2056.8,0.24322]
[1771009229900,43.54220036,2057.4,2057.1,2.63417134]
[1771009230102,2.74220036,2057.5,2057.1,2.63417134]
[1771009230701,2.59617979,2057.3,2057.0,0.2432]
[1771009230902,43.39617979,2057.4,2057.0,2.7472574]
[1771009231104,2.59617979,2057.3,2056.8,2.5040574]
[1771009231300,2.59617979,2057.3,2056.7,2.7472974]
[1771009232804,2.59617979,2057.3,2056.7,0.24324]
[1771009233001,2.59617979,2057.3,2056.4,2.5040574]
[1771009233999,2.59617979,2057.3,2056.2,0.24329]
[1771009234204,2.59617979,2057.3,2056.2,2.7473474]
[1771009238607,2.66856653,2057.1,2056.2,0.24329]
[1771009239207,2.66856653,2056.9,2056.2,0.24329]
[1771009240712,2.66856653,2056.9,2056.2,2.83232609]
[1771009241915,2.66856653,2056.9,2056.2,0.24329]
[1771009245111,2.66856653,2056.9,2056.2,2.83232609]
[1771009245518,2.66856653,2057.2,2056.2,2.83232609]
[1771009245817,2.66856653,2057.2,2056.6,2.83228609]
[1771009249112,40.8,2057.4,2057.0,2.58903609]
[1771009249417,2.66856653,2057.7,2057.1,2.83222609]
[1771009250309,43.46856653,2057.6,2057.1,2.83222609]
[1771009250516,2.66856653,2057.5,2056.9,2.58903609]
[1771009251317,2.66856653,2057.5,2057.0,2.83223609]
[1771009252219,40.8,2057.6,2057.0,2.83223609]
[1771009254719,43.46856653,2057.6,2057.0,2.83223609]
[1771009254915,40.8,2057.6,2057.0,2.83223609]
[1771009255116,2.67250549,2057.8,2057.4,2.83218609]
[1771009255720,2.67250549,2057.8,2057.4,0.24315]
[1771009256013,2.66856653,2057.6,2057.2,2.58903609]
[1771009257124,2.66856653,2057.6,2057.4,0.24315]
[1771009259023,0.00393896,2057.8,2057.4,2.83218609]
[1771009259229,2.67250549,2057.8,2057.4,2.83218609]
[1771009259533,2.66856653,2057.7,2057.4,2.83218609]
[1771009260834,43.41135208,2057.8,2057.4,2.83218609]
[1771009261834,2.60741312,2057.7,2057.4,2.83218609]
[1771009262033,2.60741312,2057.7,2057.4,0.24315]
[1771009262238,2.60741312,2057.7,2057.2,2.41517783]
[1771009263139,2.60741312,2057.7,2057.4,0.24315]
[1771009263533,2.60741312,2057.7,2056.9,0.2432]
[1771009263735,2.60741312,2057.7,2056.9,2.65837783]
[1771009264330,2.60741312,2057.7,2057.4,2.41517783]
[1771009264537,2.60741312,2057.9,2057.5,2.65831783]
[1771009264735,2.60741312,2058.6,2057.5,2.65831783]
[1771009265138,2.60741312,2058.4,2057.5,2.65831783]
[1771009265540,2.61113503,2058.4,2057.5,2.66225679]
[1771009266935,2.61113503,2058.4,2057.9,0.24309]
[1771009267136,2.61113503,2058.4,2057.9,2.65826783]
[1771009267441,2.61113503,2058.4,2057.9,0.24309]
[1771009268440,2.61113503,2058.4,2057.9,2.65826783]
[1771009268741,2.61113503,2058.4,2057.9,0.24309]
[1771009274242,2.61113503,2058.4,2057.5,2.41911679]
[1771009274543,2.61113503,2058.4,2058.0,0.24308]
[1771009274945,2.61113503,2058.4,2057.7,2.41517783]
[1771009275149,2.61113503,2058.4,2057.6,2.65830783]
[1771009275538,2.61113503,2058.4,2057.6,0.24313]
[1771009276449,2.61113503,2058.4,2057.6,2.65830783]
[1771009276647,2.61113503,2058.4,2057.9,2.65825783]
[1771009278151,0.00372191,2058.4,2057.9,2.65825783]
[1771009278349,2.61113503,2058.4,2057.9,2.65825783]
[1771009280244,2.61113503,2058.4,2057.9,0.24308]
[1771009280448,2.61113503,2058.4,2057.5,2.66225679]
[1771009282746,2.61113503,2058.4,2057.9,2.65826783]
[1771009286260,2.61113503,2058.4,2057.9,0.24309]
[1771009286457,2.61113503,2058.4,2057.9,2.65826783]
[1771009287155,0.00372191,2058.4,2057.9,2.65826783]
[1771009287362,2.60741312,2058.6,2058.2,2.65822783]
[1771009288463,43.40741312,2058.5,2058.2,2.65822783]
[1771009289058,2.60741312,2058.4,2058.2,0.24305]
[1771009289661,2.60741312,2058.4,2058.0,2.41517783]
[1771009291160,2.60741312,2058.4,2058.0,2.65824783]
[1771009292261,40.8,2058.5,2058.0,2.65824783]
[1771009292477,2.35180339,2059.1,2058.3,2.62392425]
[1771009293563,2.34861113,2058.9,2058.3,2.62392425]
[1771009298271,2.22389128,2058.9,2058.3,2.62392425]
[1771009298872,40.8,2058.8,2058.3,2.62392425]
[1771009299072,43.01352525,2058.8,2058.3,2.62392425]
[1771009299766,2.2144247,2058.7,2058.3,2.62392425]
[1771009299976,43.00400226,2058.8,2058.3,2.62392425]
[1771009300573,2.14488265,2059.0,2058.6,0.243]
[1771009300770,2.14488265,2059.0,2058.7,2.36861959]
[1771009301274,2.14488265,2059.0,2058.6,2.61161959]
[1771009301669,40.8,2058.9,2058.6,2.61161959]
[1771009302069,0.00624398,2059.1,2058.6,2.61161959]
[1771009302265,2.15210464,2059.1,2058.6,2.61161959]
[1771009302474,2.11411854,2058.9,2058.4,2.36861959]
[1771009302769,2.11411854,2058.9,2058.2,2.61167959]
[1771009304070,2.11411854,2058.9,2058.6,0.24301]
[1771009304269,2.11411854,2058.9,2058.6,2.61162959]
[1771009304465,40.8,2059.0,2058.6,2.61162959]
[1771009304873,0.00624398,2059.1,2058.6,2.61162959]
[1771009305878,40.82,2059.2,2058.6,2.61162959]
[1771009306776,40.82403227,2059.2,2058.6,2.61162959]
[1771009307171,2.00948916,2059.1,2058.6,2.61162959]
[1771009307372,2.00807154,2059.1,2058.6,2.61162959]
[1771009308472,40.82403227,2059.2,2058.6,2.61162959]
[1771009309374,0.00403227,2059.2,2058.6,2.61162959]
[1771009310374,40.80403227,2059.2,2058.6,2.61162959]
[1771009310976,1.51010957,2060.0,2059.3,2.36861959]
[1771009311479,1.51010957,2060.0,2059.2,2.61155959]
[1771009311771,1.50891898,2059.8,2059.2,2.61155959]
[1771009311970,1.50891898,2059.8,2059.2,2.61750177]
[1771009312172,1.50891898,2059.8,2059.2,2.37456177]
[1771009312382,1.50891898,2059.8,2058.9,2.36861959]
[1771009312880,1.50891898,2059.8,2058.7,0.24299]
[1771009313081,1.42142009,2059.6,2058.7,0.24299]
[1771009313675,1.42142009,2059.6,2058.7,0.2468827]
[1771009314271,1.42142009,2059.6,2058.7,2.61550229]
[1771009316376,1.42142009,2059.6,2058.7,0.2468827]
[1771009316580,1.41597547,2059.4,2058.7,0.2468827]
[1771009317883,1.41597547,2059.4,2058.7,2.61550229]
[1771009318787,1.41597547,2059.4,2058.7,0.2468827]
[1771009320185,1.41262724,2059.2,2058.3,2.61166959]
[1771009320886,1.41823888,2059.0,2058.3,2.61166959]
[1771009321087,1.41823888,2059.0,2058.3,2.61547926]
[1771009323185,20.163,2059.4,2058.8,2.28004482]
[1771009323186,1.38283559,2059.4,2058.8,2.28004482]
[1771009323587,1.38283559,2059.4,2058.9,0.24298]
[1771009324182,1.37396263,2059.2,2058.9,0.24298]
[1771009325180,1.37396263,2059.2,2058.6,2.28004482]
[1771009325791,1.37396263,2059.2,2058.7,2.52304482]
[1771009326690,0.87600263,2059.2,2058.7,2.52304482]
[1771009326883,41.89480944,2059.3,2058.7,2.52304482]
[1771009328298,1.09563134,2059.2,2058.7,2.52304482]
[1771009328985,41.88800556,2059.3,2058.7,2.52304482]
[1771009329385,40.8,2059.3,2058.7,2.52304482]
[1771009329587,2.44154221,2059.9,2059.2,2.28004482]
[1771009329785,2.44154221,2059.9,2059.3,0.24293]
[1771009329990,2.44154221,2059.9,2058.9,2.28004482]
[1771009330593,2.44154221,2059.7,2058.9,2.28004482]
[1771009332492,2.44154221,2059.7,2059.1,2.28004482]
[1771009333598,2.44154221,2059.7,2059.3,2.28004482]
[1771009333899,2.44154221,2059.7,2059.2,2.52298482]
[1771009335503,2.44154221,2059.7,2059.2,0.24294]
[1771009335996,2.44154221,2059.5,2059.0,2.28004482]
[1771009336397,2.44154221,2059.5,2058.4,19.23540514]
[1771009336398,2.44154221,2059.5,2058.5,2.52306482]
[1771009337102,2.44154221,2059.5,2058.9,2.28004482]
[1771009337500,2.44154221,2059.5,2059.0,2.52301482]
[1771009338208,40.8,2059.6,2059.0,2.52301482]
[1771009338401,0.00573315,2060.0,2059.5,2.28004482]
[1771009338601,2.44154221,2060.2,2059.6,2.52293482]
[1771009338798,2.44154221,2060.2,2059.1,4.509]
[1771009339004,2.44154221,2060.0,2059.1,0.24294]
[1771009339403,2.44154221,2059.8,2059.1,0.24294]
[1771009339608,2.44572119,2059.8,2059.1,0.24294]
[1771009339900,2.44572119,2059.8,2059.1,2.52298482]
[1771009340600,2.44572119,2059.8,2058.9,2.28004482]
[1771009341904,2.44572119,2059.8,2059.0,2.52301482]
[1771009344903,43.24154221,2059.7,2059.0,2.52301482]
[1771009345309,2.44154221,2059.6,2059.0,2.52301482]
[1771009346310,2.44154221,2059.6,2058.3,19.24037481]
[1771009346311,2.44154221,2059.6,2058.8,2.28004482]
[1771009348809,2.44154221,2059.6,2058.6,2.28004482]
[1771009349210,2.44154221,2059.6,2058.8,2.28004482]
[1771009349410,2.44154221,2059.6,2058.9,2.52302482]
[1771009350408,2.44154221,2059.4,2058.9,0.24298]
[1771009350608,2.44154221,2059.4,2058.5,2.28004482]
[1771009352115,2.44154221,2059.4,2058.4,0.24303]
[1771009352316,2.83472777,2059.2,2058.4,0.24303]
[1771009352517,2.83472777,2059.2,2058.3,2.66351674]
[1771009352821,2.83472777,2059.1,2058.3,0.00380967]
[1771009353319,2.83472777,2058.9,2058.3,0.00380967]
[1771009353914,2.83472777,2058.9,2058.3,2.66351674]
[1771009355015,2.83472777,2058.9,2058.3,0.00380967]
[1771009356518,2.83472777,2058.9,2057.9,0.24309]
[1771009356716,2.83472777,2058.9,2057.9,2.90279707]
[1771009357612,2.81850953,2058.7,2057.9,2.90661023]
[1771009358622,2.81850953,2058.7,2057.9,0.24690316]
[1771009359014,2.81850953,2058.7,2057.6,2.84688253]
[1771009360126,2.81850953,2058.7,2057.6,2.85251781]
[1771009361227,40.8,2058.8,2058.1,2.84688253]
[1771009361420,40.8,2058.8,2058.5,3.08990253]
[1771009361723,2.81850953,2059.1,2058.5,3.08990253]
[1771009361918,2.81850953,2059.7,2058.8,2.84688253]
[1771009362124,2.81850953,2059.5,2058.8,2.84688253]
[1771009362517,2.81850953,2059.5,2058.3,2.84688253]
[1771009362719,2.81850953,2059.3,2058.5,2.84688253]
[1771009363021,2.81850953,2059.3,2057.6,5.98653528]
[1771009363022,2.81850953,2059.3,2058.1,2.84688253]
[1771009363216,2.81850953,2059.0,2057.9,3.08997253]
[1771009363621,2.81850953,2058.7,2057.7,2.84688253]
[1771009364416,2.81850953,2058.7,2057.8,3.08999253]
[1771009366422,2.81850953,2058.4,2057.6,0.00563528]
[1771009367127,2.81850953,2058.1,2057.2,2.84688253]
[1771009367321,2.81850953,2058.1,2057.0,2.84688253]
[1771009367526,2.81850953,2057.9,2056.8,3.09010253]
[1771009367832,2.81850953,2057.8,2056.8,0.24322]
[1771009368032,2.82252745,2057.8,2056.8,0.24890365]
[1771009368234,2.82252745,2057.8,2056.8,0.00568365]
[1771009369535,2.81850953,2057.7,2056.8,2.85256618]
[1771009370334,2.81850953,2057.7,2056.8,0.00568365]
[1771009371032,20.17201792,2057.8,2056.4,2.84688253]
[1771009371033,2.81850953,2057.5,2056.4,2.84688253]
[1771009371334,2.81850953,2057.5,2056.3,3.09016253]
[1771009371937,3.06164953,2057.5,2055.9,2.84688253]
[1771009372230,2.81850953,2057.2,2055.9,2.84688253]
[1771009373035,2.81850953,2057.0,2055.9,2.84688253]
[1771009373236,2.81850953,2056.9,2055.9,2.84688253]
[1771009373633,2.81850953,2056.9,2055.6,2.84688253]
[1771009374036,2.81850953,2056.6,2055.6,2.84688253]
[1771009374630,2.81850953,2056.3,2055.2,0.2434]
[1771009374834,2.81850953,2056.0,2055.2,2.84688253]
[1771009376442,2.81850953,2056.0,2054.9,3.09032253]
[1771009378038,2.81850953,2056.0,2055.2,2.84688253]
[1771009378333,2.81850953,2056.2,2055.2,2.84688253]
[1771009378533,40.8,2056.1,2055.5,0.24338]
[1771009378736,40.8,2056.1,2055.6,2.84688253]
[1771009379438,2.81850953,2056.0,2055.6,2.84688253]
[1771009379739,43.61850953,2056.1,2055.6,2.84688253]
[1771009380135,2.81850953,2056.0,2055.4,2.84688253]
[1771009380542,2.81850953,2056.0,2055.0,4.73344]
[1771009380543,2.81850953,2056.0,2055.2,2.84688253]
[1771009380938,40.8,2056.1,2055.4,2.91093499]
[1771009381139,0.00607518,2056.3,2055.6,2.91093499]
[1771009381436,0.00607518,2056.3,2055.4,5.9875]
[1771009381437,0.00607518,2056.3,2055.8,2.91093499]
[1771009381839,0.00607518,2056.3,2056.0,2.91093499]
[1771009382035,2.77113208,2056.7,2056.0,2.91093499]
[1771009382235,2.77113208,2056.5,2055.9,0.24333]
[1771009382437,2.77113208,2056.5,2055.6,2.91093499]
[1771009382639,2.77113208,2056.5,2055.4,3.15432499]
[1771009383039,2.77594803,2056.5,2055.4,3.1579831]
[1771009383240,2.77594803,2056.5,2055.4,0.24704811]
[1771009383839,2.77113208,2056.3,2055.4,3.1579831]
[1771009384634,0.00481595,2056.5,2055.4,3.1579831]
[1771009384838,0.00481595,2056.5,2055.9,2.91093499]
[1771009385335,0.00481595,2056.5,2056.1,2.91093499]
[1771009385844,2.77594803,2056.5,2056.0,3.15425499]
[1771009386044,0.00481595,2056.5,2056.0,3.15425499]
[1771009387240,2.77594803,2056.5,2056.0,3.15425499]
[1771009387443,0.00481595,2056.5,2056.0,3.15425499]
[1771009387641,2.77594803,2056.5,2056.0,3.15425499]
[1771009387841,0.00481595,2056.5,2056.0,3.15425499]
[1771009389144,22.96512784,2057.3,2056.0,3.15425499]
[1771009389145,2.77113208,2056.9,2056.0,3.15425499]
[1771009389739,2.77113208,2056.9,2056.5,0.183129]
[1771009390041,40.8,2056.8,2056.5,0.183129]
[1771009390834,0.00564059,2056.9,2056.6,0.41650297]
[1771009391035,0.00564059,2056.9,2056.7,0.31235717]
[1771009391247,0.00564059,2056.9,2056.6,0.55560717]
[1771009391846,40.80564059,2056.9,2056.6,0.55560717]
[1771009392148,0.00564059,2056.9,2056.6,0.55560717]
[1771009392347,0.00564059,2056.9,2056.6,0.24325]
[1771009392547,2.77677267,2056.9,2056.6,0.24325]
[1771009393351,2.77677267,2056.9,2056.2,0.9418026]
[1771009394753,2.77677267,2056.9,2056.1,0.2433]
[1771009394953,2.77677267,2056.9,2056.1,1.16051087]
[1771009395452,2.77677267,2056.9,2056.2,0.91792109]
[1771009395655,2.77677267,2056.9,2056.3,0.24328]
[1771009395845,0.00564059,2056.9,2056.6,0.91792109]
[1771009396049,0.00564059,2056.9,2056.5,1.16171835]
[1771009396246,43.57113208,2057.1,2056.7,1.16169835]
[1771009396453,2.77113208,2057.0,2056.7,0.24324]
[1771009396654,2.77113208,2057.0,2056.2,1.13831075]
[1771009396958,2.77113208,2057.0,2056.3,0.89502075]
[1771009397252,2.77113208,2057.0,2056.2,0.24329]
[1771009397447,2.77599892,2057.0,2056.2,0.24329]
[1771009397651,4.91766154,2056.9,2055.7,1.13893037]
[1771009397852,2.77113208,2056.8,2055.7,1.13893037]
[1771009398053,2.77113208,2056.8,2055.8,0.89623003]
[1771009398253,2.77113208,2056.8,2055.7,1.13958003]
[1771009398447,4.91962804,2056.7,2055.7,0.24335]
[1771009398650,2.77113208,2056.5,2055.4,0.00365811]
[1771009399051,2.77113208,2056.5,2055.4,0.81168695]
[1771009400155,2.77113208,2056.3,2055.4,0.81168695]
[1771009400859,2.77113208,2056.3,2055.4,0.00365811]
[1771009402356,2.78074664,2056.1,2055.4,0.00365811]
[1771009404454,2.78074664,2056.1,2055.5,0.24338]
[1771009404656,2.78074664,2056.1,2055.5,1.06848853]
[1771009404853,2.77113208,2056.3,2055.7,1.06846853]
[1771009405049,2.77113208,2056.3,2055.4,0.00365811]
[1771009408558,2.77113208,2056.1,2055.4,0.88171661]
[1771009409259,2.77113208,2056.1,2055.4,0.00365811]
[1771009409961,2.77113208,2055.9,2055.2,0.2434]
[1771009411162,2.77113208,2055.9,2055.2,0.00517999]
[1771009411661,2.77113208,2055.9,2055.2,0.90366964]
[1771009412063,2.77113208,2055.9,2055.2,0.00517999]
[1771009412459,2.77113208,2055.9,2055.3,0.2434]
[1771009412763,2.77113208,2055.9,2055.5,1.08584616]
[1771009413260,2.77113208,2055.9,2055.5,0.24338]
[1771009413462,2.77113208,2055.9,2055.5,1.08528446]
[1771009413662,3.03643076,2056.3,2055.5,1.08528446]
[1771009413958,3.03643076,2056.3,2055.5,0.24338]
[1771009414163,3.03643076,2056.3,2055.2,0.00517999]
[1771009414365,3.03643076,2056.1,2055.2,0.00517999]
[1771009416565,3.03643076,2056.1,2055.2,0.91533916]
[1771009416863,3.03643076,2056.1,2055.2,0.00517999]
[1771009417359,5.8316986,2056.1,2055.2,0.00517999]
[1771009417563,5.8316986,2056.1,2054.8,0.24345]
[1771009417564,3.08167646,2055.9,2054.8,0.24345]
[1771009417764,3.08167646,2055.7,2054.8,0.24345]
[1771009418763,3.08167646,2055.7,2054.8,0.24790593]
[1771009418959,3.08167646,2055.5,2054.8,0.24790593]
[1771009419161,3.08645525,2055.5,2054.3,1.15263364]
[1771009420164,3.08645525,2055.5,2054.4,0.90814184]
[1771009420556,3.08645525,2055.5,2054.8,0.96798787]
[1771009421158,3.08167646,2055.7,2055.1,1.21069869]
[1771009421362,3.08167646,2055.7,2055.1,0.24343]
[1771009421559,3.08167646,2055.7,2054.7,0.96713325]
[1771009421759,3.08167646,2055.5,2054.7,0.96713325]
[1771009422158,3.08167646,2055.5,2054.8,0.24346]
[1771009422360,3.08638799,2055.5,2054.8,0.24346]
[1771009422956,0.00471153,2055.5,2055.1,1.00328007]
[1771009423160,0.00471153,2055.5,2055.0,5.98865]
[1771009423161,3.08167646,2056.3,2055.5,1.00328007]
[1771009423565,3.08167646,2056.3,2055.6,1.24649623]
[1771009424155,3.0879434,2056.3,2055.6,7.23342623]
[1771009424362,3.08167646,2056.5,2055.9,1.00209354]
[1771009424764,3.08167646,2056.5,2055.8,0.24334]
[1771009425364,3.08688614,2056.5,2055.8,0.24954292]
[1771009427266,3.08688614,2056.5,2055.8,1.27276766]
[1771009427567,0.00336258,2056.5,2056.2,1.26628786]
[1771009428659,3.08167646,2057.2,2056.2,1.26628786]
[1771009428858,3.08167646,2057.1,2056.2,0.2433]
[1771009429266,3.08167646,2056.9,2056.2,0.2433]
[1771009429668,3.08167646,2056.7,2055.8,5.50111862]
[1771009430263,3.08167646,2056.7,2055.8,1.03511862]
[1771009430464,3.08167646,2056.5,2055.8,0.00620292]
[1771009432167,3.08167646,2056.3,2055.8,0.00620292]
[1771009432370,3.08167646,2056.3,2055.8,2.28742808]
[1771009432761,3.08167646,2056.3,2055.8,0.00620292]
[1771009433770,3.08167646,2056.1,2055.8,0.00620292]
[1771009433972,3.08167646,2056.1,2055.7,0.24335]
[1771009434873,3.08167646,2056.1,2055.7,0.24831227]
[1771009435372,0.00419515,2056.9,2055.3,4.464]
[1771009435373,3.08167646,2056.0,2055.3,4.464]
[1771009435574,3.08167646,2055.9,2055.3,6.74416304]
[1771009435772,3.08167646,2055.9,2055.4,2.28016304]
[1771009435967,3.08167646,2056.7,2055.4,2.28016304]
[1771009436167,3.08167646,2056.1,2055.5,2.51873872]
[1771009436373,3.08167646,2056.1,2055.7,0.00489882]
[1771009437267,26.42247646,2056.0,2055.7,0.00489882]
[1771009437469,3.08167646,2056.5,2055.7,2.27777483]
[1771009437768,3.08167646,2056.5,2055.8,0.24334]
[1771009440975,3.43027347,2056.3,2055.8,2.5273382]
[1771009441868,3.43027347,2056.1,2055.8,0.24334]
[1771009442178,3.43027347,2056.1,2055.7,0.00489882]
[1771009442477,3.43027347,2055.9,2055.3,2.52644782]
[1771009443478,3.43027347,2056.6,2055.3,2.5318716]
[1771009443777,3.43027347,2056.5,2055.7,2.52035293]
[1771009443972,3.43027347,2056.5,2056.1,0.2433]
[1771009444177,3.43027347,2056.3,2056.1,0.2433]
[1771009444568,3.43027347,2056.2,2055.3,5.99311378]
[1771009444773,3.43027347,2056.2,2055.5,2.23547085]
[1771009444972,3.43027347,2056.2,2055.6,0.24336]
[1771009445278,3.43027347,2056.8,2055.7,2.2304468]
[1771009445472,3.43027347,2056.4,2055.7,2.2304468]
[1771009445673,3.43027347,2056.4,2055.8,0.24334]
[1771009445972,3.43027347,2056.6,2056.2,0.2433]
[1771009446178,3.43027347,2056.6,2056.2,2.47784724]
[1771009446474,0.00419515,2056.9,2055.7,6.7316964]
[1771009446475,3.43027347,2056.4,2055.7,6.7316964]
[1771009446675,3.43027347,2056.4,2055.7,4.463]
[1771009446876,3.43027347,2056.4,2055.7,6.7316964]
[1771009447268,3.43027347,2056.4,2055.7,6.9750364]
[1771009447467,3.43027347,2056.2,2055.7,6.9750364]
[1771009447870,3.43027347,2056.7,2055.9,0.24333]
[1771009448077,3.43027347,2056.6,2055.9,2.5648969]
[1771009448473,3.43027347,2056.4,2055.9,0.24333]
[1771009448980,3.43027347,2056.3,2055.9,0.24333]
[1771009449678,3.43027347,2056.2,2055.9,0.24333]
[1771009450675,25.59061347,2056.3,2055.9,2.57216494]
[1771009450875,21.6583,2056.3,2055.9,2.57216494]
[1771009451074,25.08857347,2056.3,2055.9,2.57216494]
[1771009451474,3.43027347,2056.2,2055.9,0.24333]
[1771009451684,3.43027347,2056.2,2055.5,2.3223379]
[1771009451881,21.16788,2056.1,2055.5,2.3223379]
[1771009452382,3.43027347,2056.3,2055.9,2.61806324]
[1771009452583,20.66701,2056.2,2055.9,2.61806324]
[1771009453782,3.43027347,2056.5,2055.9,2.61806324]
[1771009453981,2.90122347,2056.5,2056.2,0.24329]
[1771009454582,22.24314595,2056.5,2056.2,0.24329]
[1771009454784,3.43027347,2056.4,2055.8,2.97552086]
[1771009455185,3.43027347,2056.2,2055.9,0.24333]
[1771009456379,22.77219595,2056.2,2055.9,0.24333]
[1771009456574,3.43027347,2056.1,2055.9,0.24333]
[1771009456779,3.43027347,2056.1,2055.7,3.06357468]
[1771009457083,3.43027347,2056.8,2055.9,0.24333]
[1771009457282,3.43027347,2056.2,2055.9,0.24333]
[1771009457778,22.77219595,2056.1,2055.6,3.10875109]
[1771009458084,3.43027347,2056.1,2055.6,3.10875109]
[1771009458881,19.34192248,2056.1,2055.5,3.38560803]
[1771009459084,3.43027347,2056.2,2055.5,3.38560803]
[1771009460288,3.43027347,2056.0,2055.5,3.38560803]
[1771009463887,3.43027347,2056.0,2055.5,0.24338]
[1771009464088,3.43027347,2055.8,2055.3,0.00542378]
[1771009464294,3.43027347,2055.6,2055.3,0.00542378]
[1771009464492,3.43027347,2055.4,2055.0,7.97360408]
[1771009464692,1.64868347,2055.4,2055.2,0.24341]
[1771009464992,1.15969347,2055.4,2055.2,0.24341]
[1771009465392,1.16594034,2055.4,2055.1,3.58323373]
[1771009465789,19.34192248,2055.5,2055.2,3.82664373]
[1771009466092,40.8,2056.2,2055.2,3.82664373]
[1771009466093,3.43027347,2056.0,2055.4,3.82662373]
[1771009466294,17.26416248,2055.7,2055.4,3.82662373]
[1771009466493,16.05734248,2055.7,2055.4,3.82662373]
[1771009466694,15.54351248,2055.7,2055.4,3.82662373]
[1771009466884,15.54852751,2055.7,2055.4,3.83096245]
[1771009467088,15.05139751,2055.7,2055.4,3.83096245]
[1771009467290,13.61786751,2055.7,2055.4,3.83096245]
[1771009467591,11.93603751,2055.7,2055.4,3.83096245]
[1771009467794,10.2923847,2055.7,2055.4,3.83096245]
[1771009467996,0.00501503,2055.7,2055.4,3.83096245]
[1771009468193,5.03e-06,2055.7,2055.4,3.83096245]
[1771009468697,8.88506967,2055.9,2055.7,3.58323373]
[1771009468903,12.31534314,2056.1,2055.7,3.58323373]
[1771009469402,8.88506967,2056.1,2055.8,3.82657373]
[1771009469799,3.43027347,2056.0,2055.5,4.564]
[1771009469999,3.43027347,2056.0,2055.5,8.14723373]
[1771009470202,12.31534314,2055.9,2055.5,8.14723373]
[1771009470396,7.80406967,2055.9,2055.8,0.24334]
[1771009470596,2.90425246,2056.9,2055.8,3.82657373]
[1771009470907,3.71562236,2056.6,2055.8,3.82657373]
[1771009471608,3.71981446,2056.6,2055.8,3.82657373]
[1771009472101,3.71981446,2056.6,2055.8,0.24334]
[1771009472607,3.71562236,2056.4,2055.8,0.24334]
[1771009476504,3.71562236,2056.2,2055.8,0.24334]
[1771009478208,3.71562236,2056.2,2055.8,4.02595282]
[1771009478705,3.71562236,2056.2,2055.4,0.00433872]
[1771009479506,3.71562236,2056.2,2055.4,3.78695154]
[1771009479807,3.71562236,2056.2,2055.5,4.02599282]
[1771009481902,3.71562236,2056.2,2055.5,0.24338]